Cogmind - Beta 17 @@@ ROGUE MODE // 2026.07.23 @ 22:44:36 Player: JuustuToug Result: Destroyed by B-99 Colossus with Linear Accelerator Performance ------------- Evolutions (9) 4500 Regions Visited (21) 4200 Robots Destroyed (247) 1235 Value Destroyed (9524) 9524 Prototype IDs (46) 920 Alien Tech Used (5) 1000 Bonus (3401) 3401 TOTAL SCORE: 24780 Bonus ------- High Alert Combat Kills 264 Follower Combat Kills 1579 Network Hubs Disabled 600 Registered with UFD 300 Met Optimus in HQ 500 Met Zhirov 300 Built Enhanced Grunts 300 A7 Reached Mainframe 300 Met R17 at Cetus 500 Met R17 at Research 2000 Friendly Fire -3242 Cogmind --------- Core Integrity 0/1600 Matter 248/300 Energy 132/340 System Corruption 16% Temperature Warning (338) Movement Flying (45) Location -1/Access Parts ------- > --- POWER (2) -------- Particle Reactor > --- PROPULSION (8) --- Impulse Thruster Array > --- UTILITY (11) ----- (None) > --- WEAPON (4) ------- (None) > --- INVENTORY (5) ---- Improved Heavy Armor Plating Enhanced Nova Cannon Core Cannon Peak State ------------ > --- POWER ------------ Particle Reactor Light Particle Reactor > --- PROPULSION ------- Improved Heavy Treads Heavy Siege Treads Centrium Heavy Treads > --- UTILITY ---------- Advanced Cryofiber Web Advanced Heat Sink Improved Coolant Injector High-capacity Storage Unit Enhanced Optical Array Advanced Signal Interpreter Advanced Kinecellerator Advanced Transmission Jammer Medium Regenerative Plating Hacking Suite Improved Hacking Suite > --- WEAPON ----------- Advanced Variable Charge Gun Enhanced Quantum Rifle Enhanced Nova Cannon Railgun > --- INVENTORY -------- Light Particle Reactor Micro Antimatter Reactor Improved Quantum Reactor Advanced Matter Compressor Advanced Sensor Array Advanced Terrain Scanner Graphene Brace Long-range Tractor Beam Supercharged TR Compact HERF Cannon Nova Cannon Core Cannon Enhanced Hardcell Cannon Compact Tesla Bomb Launcher Advanced Remote Datajack Core Stripper [Rating: 171] Favorites ----------- Power Cooled Ion Engine Engine Cooled Ion Engine Reactor Cold Fusion Reactor Propulsion Light Treads Treads Light Treads Leg Enhanced Multireflex Exoskeleton Hover Unit Gyrokinetic Inverter Flight Unit Field Propulsion Drive Utility High-capacity Storage Unit Device Seismic Detector Storage High-capacity Storage Unit Processor Advanced Signal Interpreter Hackware Improved Hacking Suite Protection Medium Regenerative Plating Weapon Improved Assault Rifle Energy Gun Cooled Plasma Rifle Energy Cannon Nova Cannon Ballistic Gun Improved Assault Rifle Ballistic Cannon Magnetic Acceleration Cannon Launcher Compact Tesla Bomb Launcher Special Weapon Remote Datajack Impact Weapon Hammer Piercing Weapon Plasma Lance Build | -11 -10 -10 -9 -9 -9 -9 -6 -6 -6 -6 -6 -5 -5 -5 -5 -4 -4 -3 -3 -2 -1 ------- Run | Yrd Mat Min Mat Sto Rec Scr Fac Ext Cet Arc Hub Fac Upp Upp Zhi Pro Fac Res Qua Res Acc Slots Evolved 18 | . . . 2 . . . 6 . . . . 2 . . . . 2 2 . 2 2 Power 1 | . . . . . . . . . . . . 1 . . . . . . . . . Propulsion 6 | . . . . . . . 2 . . . . . . . . . . 2 . . 2 Utility 9 | . . . . . . . 4 . . . . 1 . . . . 2 . . 2 . Weapon 2 | . . . 2 . . . . . . . . . . . . . . . . . . Parts Attached 206 | 7 2 1 12 26 2 4 25 13 13 8 1 16 . 2 2 . 3 24 9 26 10 Power 22 | 1 . . 2 4 . . 1 1 1 . . 3 . . 1 . . 3 . 3 2 Engine 11 | 1 . . 2 4 . . 1 1 . . . . . . . . . . . 1 1 Core . | . . . . . . . . . . . . . . . . . . . . . . Reactor 11 | . . . . . . . . . 1 . . 3 . . 1 . . 3 . 2 1 Propulsion 51 | 2 . . 2 8 2 1 5 6 2 . . 2 . . . . . 6 . 11 4 Treads 34 | 2 . . 2 8 2 1 5 6 2 . . . . . . . . 5 . 1 . Leg 2 | . . . . . . . . . . . . 1 . . . . . 1 . . . Wheel . | . . . . . . . . . . . . . . . . . . . . . . Hover 9 | . . . . . . . . . . . . . . . . . . . . 9 . Flight 6 | . . . . . . . . . . . . 1 . . . . . . . 1 4 Utility 67 | 2 2 1 2 2 . . 13 1 5 6 1 5 . . 1 . 2 10 2 8 4 Device 35 | 1 . . 1 1 . . 8 . 1 4 . 3 . . . . 1 8 1 6 . Storage 8 | 1 2 1 . . . . . . . . . 1 . . . . . . . 1 2 Processor 4 | . . . . . . . 3 . . . . . . . . . 1 . . . . Hackware 4 | . . . . . . . . . . 2 . . . . . . . . 1 1 . Protection 16 | . . . 1 1 . . 2 1 4 . 1 1 . . 1 . . 2 . . 2 Artifact . | . . . . . . . . . . . . . . . . . . . . . . Weapon 66 | 2 . . 6 12 . 3 6 5 5 2 . 6 . 2 . . 1 5 7 4 . Energy Gun 8 | . . . 1 . . . . . 1 . . 1 . . . . . 1 2 2 . Energy Cannon 7 | . . . 1 . . . . . . 1 . . . . . . . 2 1 2 . Ballistic Gun 36 | 2 . . 3 11 . 3 5 2 4 1 . 1 . 2 . . . . 2 . . Ballistic Cannon 2 | . . . . . . . 1 . . . . . . . . . . 1 . . . Launcher 6 | . . . . 1 . . . 1 . . . 3 . . . . . 1 . . . Special Weapon 4 | . . . . . . . . 2 . . . . . . . . 1 . 1 . . Impact Weapon 2 | . . . 1 . . . . . . . . . . . . . . . 1 . . Slashing Weapon . | . . . . . . . . . . . . . . . . . . . . . . Piercing Weapon 1 | . . . . . . . . . . . . 1 . . . . . . . . . Special Melee Weapon . | . . . . . . . . . . . . . . . . . . . . . . Unidentified Prototypes 36 | . . . 2 3 . . 1 . 5 1 . 8 . . 3 . . 8 4 1 . Corrupted Parts 5 | . . . . . . . . . 2 2 . . . . . . . 1 . . . System Corruption 14 | . . . . . . . . . 4 4 . . . . . . . 6 . . . Parts Lost 49 | . . . . . . . 1 2 . . 3 1 . 2 . . . 2 1 25 12 Power 5 | . . . . . . . . . . . . 1 . . . . . . . 3 1 Propulsion 19 | . . . . . . . 1 2 . . . . . . . . . . . 10 6 Utility 17 | . . . . . . . . . . . 1 . . . . . . 1 1 9 5 Weapon 8 | . . . . . . . . . . . 2 . . 2 . . . 1 . 3 . Highest Loss Streak 9 | . . . . . . . 1 1 . . 3 1 . 2 . . . 1 1 9 4 To Critical Strikes 1 | . . . . . . . 1 . . . . . . . . . . . . . . Average Backups 16 | 1 7 10 18 19 20 18 19 19 18 17 17 15 18 17 17 18 16 17 17 11 3 Power 1 | . 1 1 1 1 1 . 1 1 1 1 1 . 1 1 1 1 1 1 1 1 . Propulsion 2 | . . 1 3 5 5 4 2 3 3 2 2 2 2 2 2 2 2 2 2 . . Utility 6 | . 1 2 7 6 6 5 5 5 7 8 8 6 8 8 9 9 7 8 7 2 . Weapon 5 | . 4 5 6 6 8 6 8 8 5 4 4 4 5 4 2 3 3 3 5 5 2 Tool/Special . | . . . . . . . . . . . . . . . . . . . . . . Unused Backups 60 | . 2 . 3 13 . 2 3 . 9 1 . 6 . 1 1 . . 9 4 6 . Power 10 | . . . . 4 . . 1 . 1 . . 1 . . . . . . . 3 . Propulsion 7 | . . . 1 . . . . . 3 . . . . . . . . 3 . . . Utility 19 | . 1 . . 2 . 2 2 . 2 . . 2 . 1 1 . . 5 1 . . Weapon 22 | . 1 . 2 7 . . . . 3 1 . 3 . . . . . . 2 3 . Tool/Special 2 | . . . . . . . . . . . . . . . . . . 1 1 . . Average Slot Usage (%) 90 | . 99 100 99 99 100 94 96 99 88 82 85 87 88 86 67 88 87 84 84 72 25 Engine 5 | . 14 14 11 10 11 10 6 6 . . . . . . . . . . . . . Reactor 3 | . . . . . . . . . 5 6 6 10 11 11 11 11 10 9 9 5 . Treads 18 | . 27 28 22 22 22 21 25 25 15 13 13 10 11 11 11 11 10 14 14 9 . Device 12 | . 14 14 10 10 11 10 15 13 6 9 11 13 17 16 16 17 15 17 13 14 2 Storage 7 | . 14 14 11 10 11 10 6 6 6 6 6 5 5 5 5 5 5 4 4 2 1 Processor 6 | . . . . . . . 11 13 13 13 13 11 11 11 11 11 14 14 14 10 4 Protection 2 | . . . . . . . 1 6 12 5 1 7 5 5 5 5 8 5 4 2 1 Energy Gun 1 | . . . . . . . . . . . . 1 5 5 . 5 4 2 3 5 . Ballistic Gun 26 | . 28 28 43 42 44 41 22 25 25 25 20 16 16 15 2 17 14 13 13 5 . Peak Build Rating 171 | 7 8 8 13 22 22 23 64 63 119 119 121 130 126 126 124 124 133 153 166 171 81 Average Rating 68 | 4 6 7 11 16 22 20 45 61 101 113 113 124 124 122 99 124 130 148 151 134 48 On Entrance 76 | . 7 7 8 13 22 22 23 62 48 118 115 99 124 124 122 124 124 132 150 157 72 Avg Prop Armor Cover (%) 5 | . . . . . . . . . . . . . . . . . . . . 9 3 Naked Turns 104 | . . . . . . 104 . . . . . . . . . . . . . . . Heaviest Build 123 | 15 30 50 60 61 61 61 74 75 100 100 102 123 103 105 99 99 109 118 118 123 56 Greatest Support 240 | 40 40 40 40 40 40 40 80 83 160 160 160 160 160 160 160 160 160 240 230 230 63 Greatest Overweight (x) 7 | . . 1 1 1 1 1 1 1 1 . . 1 . . . 1 . . . 7 1 Average Overweight (x) . | . . . 1 1 1 . . . . . . . . . . . . . . . . Largest Inventory Capacity 20 | 8 15 20 20 20 20 20 20 20 20 20 20 20 20 20 20 20 20 20 20 20 20 Average Capacity 18 | 7 10 18 19 19 20 19 20 20 20 20 20 20 20 20 20 20 20 20 20 16 9 Most Carried 20 | 3 10 11 20 20 20 20 20 20 20 20 19 20 20 20 20 20 20 20 20 20 7 Average Carried 17 | 1 7 10 18 19 20 18 19 19 19 19 19 17 20 19 19 20 18 19 19 13 5 Final Capacity 20 | 8 15 20 20 20 20 20 20 20 20 20 20 20 20 20 20 20 20 20 20 5 5 Final Carried 20 | 3 9 11 20 20 20 20 20 20 20 20 19 20 20 19 20 20 18 19 20 4 5 Class Distribution -------------------- 30% | Scavenger-Skirmisher 17% | Commander-Gunner 9% | Mutant 9% | Scavenger-Gunner 9% | Scavenger-Tank 8% | Gunner 7% | Skirmisher Dominant Class ---------------- Mutant | -10/Materials Mutant | -10/Mines Gunner | -9/Materials Scavenger-Gunner | -9/Storage Commander-Gunner | -9/Recycling Commander-Gunner | -9/Scraptown Scavenger-Skirmisher | -6/Factory Scavenger-Skirmisher | -6/Extension Scavenger-Tank | -6/Cetus Scavenger-Tank | -6/Archives Scavenger-Skirmisher | -6/Hub_04(d) Scavenger-Skirmisher | -5/Factory Scavenger-Skirmisher | -5/Upper Caves Scavenger-Skirmisher | -5/Upper Caves Mutant | -5/Zhirov Skirmisher | -4/Proximity Caves Skirmisher | -4/Factory Scavenger-Skirmisher | -3/Research Scavenger-Skirmisher | -3/Quarantine Scavenger-Skirmisher | -2/Research Mutant | -1/Access Resources | -11 -10 -10 -9 -9 -9 -9 -6 -6 -6 -6 -6 -5 -5 -5 -5 -4 -4 -3 -3 -2 -1 ----------- Run | Yrd Mat Min Mat Sto Rec Scr Fac Ext Cet Arc Hub Fac Upp Upp Zhi Pro Fac Res Qua Res Acc Matter Collected 10828 | 300 272 72 718 1349 158 . 734 1126 701 438 96 889 561 281 . 136 261 983 594 1131 28 Remotely 1615 | . . . . 209 . . . . 140 . . 367 . . . . 261 474 164 . . Salvage Created 12540 | 157 518 45 1154 1585 494 . 753 1308 186 361 676 1082 446 368 . 136 479 770 615 1407 . Parts 649 | 12 31 7 78 109 24 . 34 46 21 28 29 43 13 15 . 4 10 29 44 72 . Haulers Intercepted 8 | . . . 3 3 . . . . . . . 1 . . . . . . . 1 . Recyclers Shooed 8 | . 1 . 2 . . . . 1 . . . . . . . . . . 1 3 . Parts Field Recycled . | . . . . . . . . . . . . . . . . . . . . . . Retrieved Matter . | . . . . . . . . . . . . . . . . . . . . . . Parts Self-Destructed 19 | . . . . . . . . . . . . . 8 8 . 3 . . . . . Prevented 21 | . . . . . . . . . . . . . 11 10 . . . . . . . Parts Restored . | . . . . . . . . . . . . . . . . . . . . . . Kills | -11 -10 -10 -9 -9 -9 -9 -6 -6 -6 -6 -6 -5 -5 -5 -5 -4 -4 -3 -3 -2 -1 ------- Run | Yrd Mat Min Mat Sto Rec Scr Fac Ext Cet Arc Hub Fac Upp Upp Zhi Pro Fac Res Qua Res Acc Combat Hostiles Destroyed 152 | . 10 3 16 26 4 . 7 16 1 1 3 14 6 7 . 1 4 10 9 14 . Melee 5 | . . . . . . . 1 3 . . . . . . . . . . . 1 . Guns 104 | . 10 3 16 21 4 . 5 11 1 1 1 6 2 3 . 1 . 5 9 5 . Cannons 5 | . . . . . . . . . . . . . . . . . . . . 5 . AOE 25 | . . . . 5 . . . 2 . . . 8 2 3 . . 2 3 . . . Classes Destroyed 21 | 2 4 1 4 2 1 . 1 1 . . . 1 1 . . 1 . 2 . . . Worker 18 | . 1 . 2 1 . . 2 . . . 5 . . . . . . . 4 3 . Builder 11 | . . . 1 4 . . 1 2 . . 1 1 . . . . . . . 1 . Tunneler 6 | 3 1 . 1 . . . . . . . . . . . . . . . . 1 . Hauler 8 | . . . 3 3 . . . . . . . 1 . . . . . . . 1 . Recycler 19 | 1 . . 4 1 4 . 2 3 . . 1 1 . . . . 1 . . 1 . Minesweeper 2 | . . . . . . . . . . . . . 1 . . 1 . . . . . Mechanic 5 | . . . . 2 . . . . . . . 2 . . . . . . . 1 . Operator 10 | . 1 . . 1 . . . . . 6 2 . . . . . . . . . . Watcher 12 | . 1 . 3 1 . . 2 3 1 . 1 . . . . . . . . . . Swarmer 18 | . . 3 4 . . . . . . . . 4 . 3 . . . 1 3 . . Grunt 56 | . 10 . 7 14 . . . 7 . . . . 6 4 . . 4 4 . . . Brawler 2 | . . . 1 1 . . . . . . . . . . . . . . . . . Protector 3 | . . . . 1 1 . . . . . . 1 . . . . . . . . . Sentry 30 | . . . 4 10 2 . 2 5 . 1 1 . . . . . . 2 1 2 . Demolisher 1 | . . . . . . . . . . . . . . . . . . 1 . . . Specialist 5 | . . . . . . . . . . . . 3 . . . . . . . 2 . Hunter 10 | . . . . . . . 1 2 . . 1 2 . . . . . . 2 2 . Programmer 23 | . . . . . 1 . 4 . . . 1 4 . . . 1 . 1 3 8 . Behemoth 1 | . . . . . . . . 1 . . . . . . . . . . . . . Cetus Guard 1 | . . . . . . . . . 1 . . . . . . . . . . . . Enhanced Grunt 3 | . . . . . . . . . . 1 2 . . . . . . . . . . Striker 1 | . . . . . . . . . . . . . . . . . . 1 . . . Samaritan 1 | . . . . . . . . . . . . . . . . 1 . . . . . Savage 1 | . . . . . . . . 1 . . . . . . . . . . . . . Best Kill Streak 17 | 4 2 3 6 7 3 . 2 5 2 6 6 17 4 4 . 1 5 4 5 6 . Combat Bots Only 8 | . 2 3 4 5 2 . 1 3 1 1 2 8 4 4 . 1 4 4 3 4 . Max Kills in Single Turn 7 | 1 1 1 3 5 1 . 2 2 2 1 6 7 1 2 . 1 2 1 2 2 . Gunslinging 2 | . . . 2 . . . . . . . . . . . . . . . . . . Exploded 5 | . . . . 3 . . . 2 . . . 5 1 2 . . 2 1 . . . Melee 1 | . . . . . . . 1 1 . . . . . . . . . . . 1 . Uniques/NPCs Destroyed 1 | . . . . . . . . . 1 . . . . . . . . . . . . A7 (-6/Cetus) Combat | -11 -10 -10 -9 -9 -9 -9 -6 -6 -6 -6 -6 -5 -5 -5 -5 -4 -4 -3 -3 -2 -1 -------- Run | Yrd Mat Min Mat Sto Rec Scr Fac Ext Cet Arc Hub Fac Upp Upp Zhi Pro Fac Res Qua Res Acc Hostile Shots Fired 1606 | . 30 9 32 86 10 . 89 163 14 . 171 95 19 34 . 6 24 57 124 389 254 Missed 519 | . 7 1 9 23 3 . 26 73 8 . 55 31 8 7 . 1 8 14 24 107 114 Hits 1087 | . 23 8 23 63 7 . 63 90 6 . 116 64 11 27 . 5 16 43 100 282 140 Melee 2 | . . . . 1 . . . . . . . . . . . . . 1 . . . Projectile 1085 | . 23 8 23 62 7 . 63 90 6 . 116 64 11 27 . 5 16 42 100 282 140 AOE 5 | . . 1 . . . . . . . . . . . . . . . 4 . . . Critical Strikes 44 | . . . . 4 1 . 3 . 1 . 6 2 . . . . 2 2 4 14 5 Actively Blocked 8 | . . . . . . . . . . . . . . . . . . . 4 4 . Part Disruptions 4 | . . . . . . . . . . . . . . . . 1 . . 3 . . Damage Taken 20061 | . 268 89 274 840 102 . 992 929 141 21 2289 1155 206 460 . 99 323 1236 1658 5849 3130 Core 3537 | . 22 6 15 77 . . 134 42 . . 184 128 19 36 . . 17 13 65 1208 1571 Absorbed by Shields 768 | . . . . . . . . 38 53 . . . . . . . . 165 466 46 . Reduced by Siege Mode 511 | . . . . . . . . . . . . . 4 . . . . 43 103 361 . Regen/Repaired (Parts) 2042 | . 90 . . 281 . . 70 . 40 115 24 424 40 103 . . 38 260 144 413 . Core Remaining (%) 76 | 100 . 88 . . . 77 . . . . 57 . . . . 81 98 . 94 15 . Volleys Fired 578 | 5 48 6 44 60 11 . 33 70 24 15 16 42 14 9 . 12 9 48 43 67 2 Largest 4 | 2 2 2 4 4 4 . 4 4 4 4 4 4 4 4 . 4 1 4 4 4 1 Hottest 399 | 40 40 40 83 92 92 . 92 60 240 140 195 193 125 125 . 115 72 204 240 399 300 Shots Fired 1569 | 10 96 12 176 234 44 . 100 193 94 60 21 87 43 22 . 31 9 92 105 138 2 Gun 1390 | 10 96 12 176 232 44 . 91 164 94 60 7 56 39 19 . 31 2 63 97 97 . Cannon 110 | . . . . . . . 8 1 . . 13 24 . . . . . 19 6 37 2 Launcher 39 | . . . . 2 . . 1 3 . . . 7 4 3 . . 5 10 . 4 . Special 30 | . . . . . . . . 25 . . 1 . . . . . 2 . 2 . . Kinetic 1267 | 10 96 12 176 232 44 . 99 165 93 60 7 44 30 14 . 19 . 59 64 43 . Thermal 233 | . . . . . . . . . 1 . 13 36 9 5 . 12 2 23 39 91 2 Explosive 3 | . . . . 2 . . 1 . . . . . . . . . . . . . . Electromagnetic 36 | . . . . . . . . 3 . . . 7 4 3 . . 5 10 . 4 . Robot Hit Streak 24 | 7 10 3 14 19 11 . 14 24 21 5 4 6 5 2 . 17 2 15 21 20 . Robot Miss Streak 6 | 1 3 3 4 6 2 . 6 2 4 3 1 5 4 6 . 1 2 2 2 2 . Penetration Max 1 | . . . . . . . . . 1 1 . 1 . 1 . . . . 1 1 . Secondary Targets 9 | . 1 . 2 . . . . 1 1 . . 1 . . . . . . 3 . . Max Gunslinging Chain 2 | . 1 . 2 . . . . 1 1 . . 1 . . . . . . 1 . . Shots Hit Robots 944 | 8 61 4 106 133 28 . 69 146 63 25 4 35 22 4 . 19 3 57 66 91 . Core Hits 438 | 4 26 4 47 57 11 . 23 44 27 13 27 36 11 11 . 7 9 24 26 31 . Critical Kills 13 | . 1 . . . . . . 1 . 5 . 1 1 . . 1 . 1 2 . . Critical Parts Destroyed 21 | . . . 2 2 . . 3 . 2 3 . 1 2 1 . 1 . 2 1 1 . Critical Strikes 39 | . 1 . 2 2 . . 3 1 4 8 . 3 3 1 . 3 . 3 4 1 . Burn 2 | . . . . . . . . . . . . 1 . . . 1 . . . . . Destroy 33 | . 1 . 2 . . . 1 1 4 8 . 2 3 1 . 2 . 3 4 1 . Smash 4 | . . . . 2 . . 2 . . . . . . . . . . . . . . Melee Attacks 44 | . . . 4 13 . . 27 . . . . . . . . . . . . . . Impact 44 | . . . 4 13 . . 27 . . . . . . . . . . . . . . Slashing . | . . . . . . . . . . . . . . . . . . . . . . Piercing . | . . . . . . . . . . . . . . . . . . . . . . Sneak Attacks 7 | . . . . 2 . . 5 . . . . . . . . . . . . . . Combat Hostiles . | . . . . . . . . . . . . . . . . . . . . . . Follow-up Attacks . | . . . . . . . . . . . . . . . . . . . . . . Damage Inflicted 27711 | 106 790 57 1479 2468 488 . 1585 3283 1553 855 1559 3395 866 556 . 470 661 2035 1692 3771 42 Guns 17980 | 106 781 54 1476 1919 469 . 966 2945 1553 855 94 826 421 176 . 470 . 1209 1621 2039 . Cannons 1704 | . . . . . . . . . . . 47 144 . . . . . 75 41 1397 . Explosions 7060 | . . . . 457 . . 64 189 . . 1411 2425 445 380 . . 661 751 . 277 . Melee 613 | . . . . 82 . . 531 . . . . . . . . . . . . . . Ramming 354 | . 9 3 3 10 19 . 24 149 . . 7 . . . . . . . 30 58 42 Kinetic 15919 | 106 781 54 1476 1919 469 . 966 2945 1553 855 94 633 348 151 . 336 . 1184 1118 931 . Thermal 5246 | . . . . . . . . . . . 47 1694 73 25 . 134 . 224 544 2505 . Explosive 521 | . . . . 457 . . 64 . . . . . . . . . . . . . . Electromagnetic 5058 | . . . . . . . . 189 . . 1411 1068 445 380 . . 661 627 . 277 . Impact 613 | . . . . 82 . . 531 . . . . . . . . . . . . . . Slashing . | . . . . . . . . . . . . . . . . . . . . . . Piercing . | . . . . . . . . . . . . . . . . . . . . . . Highest Corruption 30 | . . . . . . . 1 1 5 9 15 8 8 8 8 8 . 11 30 20 16 Average Corruption 6 | . . . . . . . 1 1 4 6 7 5 8 8 8 8 . 7 17 7 4 Corruption Purged 9 | . . . . . . . . . . 9 . . . . . . . . . . . Corruption Blocked . | . . . . . . . . . . . . . . . . . . . . . . Effects 240 | . . . . . . . . 2 18 7 2 15 26 25 9 9 . 59 34 28 6 Message Errors 54 | . . . . . . . . 1 4 4 . 4 10 7 . 3 . 8 6 5 2 Matter Fused 64 | . . . . . . . . . 7 1 1 2 6 5 4 3 . 15 10 8 2 Heat Flow Errors 30 | . . . . . . . . . 2 . . 2 4 2 1 . . 11 3 4 1 Energy Discharges 14 | . . . . . . . . . . . 1 . 1 3 1 . . 5 1 2 . Parts Rejected 1 | . . . . . . . . . . . . . . . . . . . . 1 . Parts Fused 3 | . . . . . . . . . . . . . . . . 1 . 1 1 . . Data Loss (minor) 29 | . . . . . . . . . . . . 4 3 3 . . . 12 6 . 1 Data Loss (major) 18 | . . . . . . . . 1 1 . . 1 1 3 3 1 . 3 1 3 . Misfires 13 | . . . . . . . . . 2 1 . 1 . 2 . 1 . 3 3 . . Alerts 4 | . . . . . . . . . 1 . . . 1 . . . . 1 . 1 . Misdirections 3 | . . . . . . . . . . . . . . . . . . . 1 2 . Weapon Failures 7 | . . . . . . . . . 1 1 . 1 . . . . . . 2 2 . Overload Shots 33 | . . . . . . . . . 1 . . 2 . 1 . 5 2 3 9 10 . Effects 1 | . . . . . . . . . . . . . . . . . . . 1 . . Heat Surge 1 | . . . . . . . . . . . . . . . . . . . 1 . . Overflow Damage 708 | . . . . 83 . . 218 2 . . 167 85 21 . . . 24 . 6 102 . Projectiles 82 | . . . . . . . . . . . 2 . . . . . . . 6 74 . Explosions 296 | . . . . 1 . . . . . . 165 85 21 . . . 24 . . . . Melee 330 | . . . . 82 . . 218 2 . . . . . . . . . . . 28 . Knockbacks 5 | . . . . 1 . . 1 2 . . . . . . . . . . . . 1 Impact 5 | . . . . 1 . . 1 2 . . . . . . . . . . . . 1 Kinetic . | . . . . . . . . . . . . . . . . . . . . . . Secondary . | . . . . . . . . . . . . . . . . . . . . . . Self-Inflicted Damage 517 | . . . . . . . 21 . . . 299 61 . . . . . 53 . 64 19 Shots 14 | . . . . . . . 1 . . . 3 4 . . . . . 4 . 2 . Rammed 37 | . 2 1 1 3 1 . 3 12 . . 3 . . . . . . . 1 6 4 Targets Rammed 45 | . 2 1 2 3 2 . 3 16 . . 3 . . . . . . . 2 7 4 Kicked . | . . . . . . . . . . . . . . . . . . . . . . Crushed 8 | . . . 1 . 1 . . 4 . . . . . . . . . . 1 1 . Highest Temperature 470 | . 2 . 52 174 57 . 28 75 470 327 158 284 222 209 91 47 10 260 382 321 376 Average Temperature 74 | . 2 . 15 47 18 . 15 13 119 97 44 109 92 77 49 15 7 70 115 109 186 Received Heat Transfer 1902 | . 147 . 93 375 36 . 153 198 9 . 168 48 63 102 . . 85 26 30 144 225 Effects 5 | . . . . . . . . . 2 . . . . 2 . . . . 1 . . Shutdowns 1 | . . . . . . . . . 1 . . . . . . . . . . . . Interference 2 | . . . . . . . . . . . . . . 2 . . . . . . . Matter Decay 2 | . . . . . . . . . 1 . . . . . . . . . 1 . . Siege Activations 18 | . . . . . . . . . 1 . . 1 2 1 . . 1 2 5 5 . Total Turns 295 | . . . . . . . . . 10 . . 11 53 13 . . 2 29 51 126 . Longest Duration 45 | . . . . . . . . . 10 . . 11 45 13 . . 2 27 23 40 . Martial Activations . | . . . . . . . . . . . . . . . . . . . . . . Shielding Activations . | . . . . . . . . . . . . . . . . . . . . . . Robots Disrupted . | . . . . . . . . . . . . . . . . . . . . . . Combat Hostiles . | . . . . . . . . . . . . . . . . . . . . . . Robots Corrupted 22 | . . . . 2 . . 2 1 . . 5 1 2 1 . . 3 2 . 3 . Combat Hostiles 13 | . . . . . . . 1 . . . 2 . 2 1 . . 2 2 . 3 . Parts Fried 54 | . . . . 1 . . 6 5 . . 10 9 5 3 . . 12 1 . 2 . Impact Corruptions 12 | . . . . 4 . . 6 1 . . . . . . . . . . . 1 . Robots Melted . | . . . . . . . . . . . . . . . . . . . . . . Combat Hostiles . | . . . . . . . . . . . . . . . . . . . . . . Parts Melted 11 | . . . . 2 . . . . . . . . . . . 2 . 3 . 4 . Heat Transferred 5423 | . . . . . . . . . . . . 1800 150 50 . 350 . 224 592 2257 . Parts Sabotaged . | . . . . . . . . . . . . . . . . . . . . . . Parts Stolen . | . . . . . . . . . . . . . . . . . . . . . . Parts Stripped . | . . . . . . . . . . . . . . . . . . . . . . Power Chain Reactions 7 | . . . . . . . . . . . 1 5 . . . . . 1 . . . Alert | -11 -10 -10 -9 -9 -9 -9 -6 -6 -6 -6 -6 -5 -5 -5 -5 -4 -4 -3 -3 -2 -1 ------- Run | Yrd Mat Min Mat Sto Rec Scr Fac Ext Cet Arc Hub Fac Upp Upp Zhi Pro Fac Res Qua Res Acc Maximum Alert Level 4 | . . . 1 2 . . . 1 1 1 4 2 . . . . 1 1 1 1 1 Low Security (%) 78 | 100 100 100 80 40 100 . 100 89 88 30 77 . . . . . 63 91 62 97 99 Level 1 11 | . . . 20 17 . . . 10 11 69 7 30 . . . . 36 8 37 2 . Level 2 9 | . . . . 42 . . . . . . 8 69 . . . . . . . . . Level 3 . | . . . . . . . . . . . 5 . . . . . . . . . . Level 4 . | . . . . . . . . . . . . . . . . . . . . . . Level 5 . | . . . . . . . . . . . . . . . . . . . . . . High Security . | . . . . . . . . . . . . . . . . . . . . . . Max Security . | . . . . . . . . . . . . . . . . . . . . . . Peak Influence 1109 | 10 99 87 227 474 173 . 45 303 236 266 1109 623 . . . . 245 217 251 215 267 Initial 538 | . . 17 . 85 148 . . 12 153 108 61 538 . . . . . 107 114 121 4 Average 124 | 2 29 12 108 272 65 . 9 91 130 209 224 470 . . . . 86 44 164 120 62 Influence Increases 8727 | 20 389 70 591 977 365 . 331 795 612 238 1290 447 135 218 . 35 265 405 459 610 475 Destroy 0b10 Robot/C 3660 | . 200 60 320 560 100 . 140 420 260 80 200 260 120 180 . 20 80 200 180 280 . Destroy 0b10 Robot/NC 505 | 20 20 . 70 70 25 . 40 45 10 30 70 30 5 . . 5 5 . 20 40 . Destroy Leader 784 | . 42 10 102 158 . . 76 56 20 . 66 32 10 10 . 10 10 60 40 82 . Allied During Kill 717 | . . . . 26 19 . 8 214 270 72 95 . . 13 . . . . . . . Successful Hack 472 | . 34 . 4 37 41 . 21 42 . . 36 14 . . . . 16 40 105 22 60 Select Force Hacks 330 | . 60 . 60 30 180 . . . . . . . . . . . . . . . . Disable Machine 750 | . . . . 30 . . 30 15 15 45 390 15 . . . . . 60 90 30 30 Anti-Garrison Action 150 | . . . . . . . . . . . . . . . . . 150 . . . . Destroy Structure 699 | . 3 . 5 21 . . 16 3 22 11 343 96 . . . . 4 30 24 51 70 Partial Spotted 30 | . . . . . . . . . . . . . . . . . . . . 15 15 Lose Combat Pursuer 630 | . 30 . 30 45 . . . . 15 . 90 . . 15 . . . 15 . 90 300 Influence Decreases 8470 | 20 343 116 388 800 745 . 305 546 616 333 367 957 575 367 . 35 60 405 447 820 225 Entered New Map 1890 | . . 29 . 118 232 . . 14 122 163 115 561 219 29 . . . 98 91 96 3 Time Decay 5815 | 20 343 87 388 642 513 . 270 442 374 150 222 386 356 308 . 35 52 305 326 474 122 Lost Part 412 | . . . . . . . . 10 . . 30 10 . 10 . . . 2 10 250 90 Lost Ally 353 | . . . . 40 . . 35 80 120 20 . . . 20 . . 8 . 20 . 10 Squads Dispatched 55 | . 5 . 3 5 . . 6 3 . . 6 2 . . . . 3 5 4 10 3 Investigation 15 | . 3 . 2 1 . . 2 2 . . . . . . . . . 3 . 1 1 Extermination 12 | . . . . . . . 4 . . . 1 1 . . . . . . 1 4 1 Reinforcement 15 | . 2 . 1 . . . . 1 . . 2 . . . . . 1 2 . 5 1 Assault 7 | . . . . 4 . . . . . . . 1 . . . . 2 . . . . Garrison 6 | . . . . . . . . . . . 3 . . . . . . . 3 . . Intercept . | . . . . . . . . . . . . . . . . . . . . . . Searches Triggered . | . . . . . . . . . . . . . . . . . . . . . . Construction Impeded 1 | . . . . . . . . . . . 1 . . . . . . . . . . Haulers Reinforced 2 | . . . . . . . . . . . . . . . . . . 1 . 1 . Active Scanning Responses . | . . . . . . . . . . . . . . . . . . . . . . Cargo Convoy Interrupts 1 | . . . . . . . . . . . . 1 . . . . . . . . . Stealth | -11 -10 -10 -9 -9 -9 -9 -6 -6 -6 -6 -6 -5 -5 -5 -5 -4 -4 -3 -3 -2 -1 --------- Run | Yrd Mat Min Mat Sto Rec Scr Fac Ext Cet Arc Hub Fac Upp Upp Zhi Pro Fac Res Qua Res Acc Distress Signals 26 | . 2 . 5 4 . . 1 3 2 . 2 . . . . . . 5 1 . 1 Communications Jammed 36 | . . . . . . . . . . . . 27 . . . . 1 . 7 1 . Distress Signals 35 | . . . . . . . . . . . . 27 . . . . 1 . 7 . . Times Spotted 334 | . 18 2 31 40 5 . 14 24 16 13 21 23 7 9 . 1 5 22 13 32 38 Peak Tracking Total 15 | . 3 1 4 7 1 . 3 3 6 1 15 10 5 5 . 1 4 5 3 10 12 Tactical Retreats 20 | . 2 . 2 2 . . . . 1 . 2 . . 1 . . . 1 . 3 6 Traps | -11 -10 -10 -9 -9 -9 -9 -6 -6 -6 -6 -6 -5 -5 -5 -5 -4 -4 -3 -3 -2 -1 ------- Run | Yrd Mat Min Mat Sto Rec Scr Fac Ext Cet Arc Hub Fac Upp Upp Zhi Pro Fac Res Qua Res Acc Traps Triggered 7 | . 1 . . 1 . . 2 . . . 2 . . . . . . 1 . . . Indirectly 2 | . . . . . . . . . . . 2 . . . . . . . . . . Trap Hack Attempts . | . . . . . . . . . . . . . . . . . . . . . . Triggered . | . . . . . . . . . . . . . . . . . . . . . . Disarmed . | . . . . . . . . . . . . . . . . . . . . . . Reprogrammed . | . . . . . . . . . . . . . . . . . . . . . . Reused . | . . . . . . . . . . . . . . . . . . . . . . Traps Extracted . | . . . . . . . . . . . . . . . . . . . . . . Installed . | . . . . . . . . . . . . . . . . . . . . . . Triggered . | . . . . . . . . . . . . . . . . . . . . . . Machines | -11 -10 -10 -9 -9 -9 -9 -6 -6 -6 -6 -6 -5 -5 -5 -5 -4 -4 -3 -3 -2 -1 ---------- Run | Yrd Mat Min Mat Sto Rec Scr Fac Ext Cet Arc Hub Fac Upp Upp Zhi Pro Fac Res Qua Res Acc Machines Disabled 53 | . . . . 2 . . 2 3 1 3 26 1 . . . . 1 4 6 2 2 Max in Single Turn 12 | . . . . 1 . . 1 1 1 1 12 1 . . . . 1 1 1 1 1 Garrison Access 2 | . . . . . . . . . . . . . . . . . 1 . . . 1 Network Hub 3 | . . . . . . . . . . . 3 . . . . . . . . . . Machines Repaired . | . . . . . . . . . . . . . . . . . . . . . . Machines Dismantled . | . . . . . . . . . . . . . . . . . . . . . . Machines Sabotaged . | . . . . . . . . . . . . . . . . . . . . . . Overloaded Fab Kills . | . . . . . . . . . . . . . . . . . . . . . . Hacking | -11 -10 -10 -9 -9 -9 -9 -6 -6 -6 -6 -6 -5 -5 -5 -5 -4 -4 -3 -3 -2 -1 --------- Run | Yrd Mat Min Mat Sto Rec Scr Fac Ext Cet Arc Hub Fac Upp Upp Zhi Pro Fac Res Qua Res Acc Machines Accessed 81 | . 8 . 7 9 12 5 5 11 1 . 4 1 . 1 . . 2 4 3 3 5 Terminals 51 | . 5 . 4 6 6 . 3 11 1 . 4 1 . . . . 1 1 3 2 3 Fabricators . | . . . . . . . . . . . . . . . . . . . . . . Repair Stations 4 | . 1 . . 2 . . 1 . . . . . . . . . . . . . . Recycling Units 13 | . 2 . 2 1 6 . . . . . . . . . . . . 2 . . . Scanalyzers 5 | . . . 1 . . . . . . . . . . . . . 1 1 . 1 1 Garrison Access 2 | . . . . . . . 1 . . . . . . . . . . . . . 1 Total Hacks 242 | . 17 . 16 27 20 33 7 20 1 . 9 2 . 7 . . 21 10 12 21 19 Successful 137 | . 11 . 8 15 15 33 3 11 . . 2 1 . 7 . . 10 4 5 7 5 Failed 103 | . 6 . 8 12 5 . 4 8 1 . 7 1 . . . . 11 6 7 13 14 Catastrophic 21 | . . . 2 1 1 . 1 1 1 . . . . . . . 2 4 2 2 4 Database Lockouts 2 | . . . . . . . . 1 . . . . . . . . . . . 1 . Manual 86 | . 14 . 7 13 19 . 1 7 1 . 6 . . . . . 7 4 1 3 3 Terminals 137 | . 11 . 8 20 14 . 5 20 1 . 9 2 . . . . 8 4 12 10 13 Fabricators . | . . . . . . . . . . . . . . . . . . . . . . Repair Stations 10 | . 3 . . 6 . . 1 . . . . . . . . . . . . . . Recycling Units 18 | . 3 . 4 1 6 . . . . . . . . . . . . 4 . . . Scanalyzers 35 | . . . 4 . . . . . . . . . . . . . 13 2 . 11 5 Garrison Access 2 | . . . . . . . 1 . . . . . . . . . . . . . 1 Terminal Hacks 74 | . 2 . 2 5 2 33 2 9 . . 1 1 . 7 . . 1 1 4 3 1 Record 31 | . . . . . . 24 . . . . . . . 7 . . . . . . . Part Schematic 3 | . . . . . 2 . . . . . . . . . . . . . 1 . . Robot Analysis 9 | . . . . . . 8 . . . . . . . . . . . . . . 1 Prototype ID Bank 4 | . . . . . . . 1 1 . . . 1 . . . . . . . 1 . Open Door 7 | . . . . 1 . . . 6 . . . . . . . . . . . . . Level Access Points 3 | . . . . 1 . . . . . . . . . . . . . . 1 1 . Branch Access Points 4 | . . . 1 . . . 1 1 . . . . . . . . . 1 . . . Machine Index 1 | . . . . . . . . . . . . . . . . . . . 1 . . Terminal Index 1 | . . . 1 . . . . . . . . . . . . . . . . . . Locate Traps 1 | . . . . 1 . . . . . . . . . . . . . . . . . Recall Investigation 1 | . . . . . . . . 1 . . . . . . . . . . . . . Hauler Manifests 4 | . 1 . . 1 . . . . . . . . . . . . 1 . 1 . . Registered Components 1 | . . . . . . . . . . . 1 . . . . . . . . . . Zone Layout 3 | . 1 . . 1 . . . . . . . . . . . . . . . 1 . Proto ID Catalog 1 | . . . . . . 1 . . . . . . . . . . . . . . . Fabricator Hacks . | . . . . . . . . . . . . . . . . . . . . . . Repair Station Hacks 6 | . 2 . . 4 . . . . . . . . . . . . . . . . . Scan Component 3 | . 1 . . 2 . . . . . . . . . . . . . . . . . Repair 3 | . 1 . . 2 . . . . . . . . . . . . . . . . . Recycling Unit Hacks . | . . . . . . . . . . . . . . . . . . . . . . Scanalyzer 20 | . . . 4 . . . . . . . . . . . . . 8 2 . 4 2 Insert Component 5 | . . . 1 . . . . . . . . . . . . . 3 . . 1 . Analyze 5 | . . . 1 . . . . . . . . . . . . . 4 . . . . Retrieve Study 10 | . . . 2 . . . . . . . . . . . . . 1 2 . 3 2 Garrison Access Hacks 1 | . . . . . . . . . . . . . . . . . . . . . 1 Seal Access 1 | . . . . . . . . . . . . . . . . . . . . . 1 Unauthorized Hacks 36 | . 7 . 2 6 13 . 1 2 . . 1 . . . . . 1 1 1 . 1 Terminals 23 | . 5 . . 5 7 . . 2 . . 1 . . . . . 1 . 1 . 1 Assimilate 1 | . . . . . . . . . . . . . . . . . . . . . 1 Botnet 11 | . 2 . . 2 2 . . 2 . . 1 . . . . . 1 . 1 . . Skim 11 | . 3 . . 3 5 . . . . . . . . . . . . . . . . Fabricators . | . . . . . . . . . . . . . . . . . . . . . . Repair Stations 1 | . . . . . . . 1 . . . . . . . . . . . . . . Patch 1 | . . . . . . . 1 . . . . . . . . . . . . . . Recycling Units 12 | . 2 . 2 1 6 . . . . . . . . . . . . 1 . . . Tunnel 11 | . 2 . 2 1 6 . . . . . . . . . . . . . . . . Fedlink 1 | . . . . . . . . . . . . . . . . . . 1 . . . Scanalyzers . | . . . . . . . . . . . . . . . . . . . . . . Garrison Access . | . . . . . . . . . . . . . . . . . . . . . . Data Cores Recovered . | . . . . . . . . . . . . . . . . . . . . . . Used . | . . . . . . . . . . . . . . . . . . . . . . Hacking Detections 51 | . 5 . 4 9 4 . 4 6 2 . 4 1 . . . . 1 2 3 2 4 Full Trace Events 5 | . . . . 1 . . . 1 . . . . . . . . . 1 . 1 1 Feedback Events . | . . . . . . . . . . . . . . . . . . . . . . Feedback Blocked . | . . . . . . . . . . . . . . . . . . . . . . Robot Schematics Acquired . | . . . . . . . . . . . . . . . . . . . . . . Robots Built . | . . . . . . . . . . . . . . . . . . . . . . Authchips . | . . . . . . . . . . . . . . . . . . . . . . Time . | . . . . . . . . . . . . . . . . . . . . . . Total Robot Build Rating . | . . . . . . . . . . . . . . . . . . . . . . Part Schematics Acquired 6 | . . . 1 . 2 . . . . . . . . . . . 2 . 1 . . Parts Built . | . . . . . . . . . . . . . . . . . . . . . . Authchips . | . . . . . . . . . . . . . . . . . . . . . . Time . | . . . . . . . . . . . . . . . . . . . . . . Total Part Build Rating . | . . . . . . . . . . . . . . . . . . . . . . Part Studies Acquired 10 | . . . 2 . . . . . . . . . . . . . 1 2 . 3 2 Parts Repaired 3 | . 1 . . 2 . . . . . . . . . . . . . . . . . Time 78 | . 26 . . 52 . . . . . . . . . . . . . . . . . Parts Recycled . | . . . . . . . . . . . . . . . . . . . . . . Recycled Matter . | . . . . . . . . . . . . . . . . . . . . . . Retrieved Matter . | . . . . . . . . . . . . . . . . . . . . . . Retrieved Components . | . . . . . . . . . . . . . . . . . . . . . . Parts Scanalyzed 3 | . . . 1 . . . . . . . . . . . . . 2 . . . . Part Schematics Acquired 3 | . . . 1 . . . . . . . . . . . . . 2 . . . . Parts Damaged 1 | . . . . . . . . . . . . . . . . . 1 . . . . Bothacking | -11 -10 -10 -9 -9 -9 -9 -6 -6 -6 -6 -6 -5 -5 -5 -5 -4 -4 -3 -3 -2 -1 ------------ Run | Yrd Mat Min Mat Sto Rec Scr Fac Ext Cet Arc Hub Fac Upp Upp Zhi Pro Fac Res Qua Res Acc Used RIF Installer . | . . . . . . . . . . . . . . . . . . . . . . Robots Hacked 6 | . . . . . . . . 2 . . 1 . . . . . 1 . 2 . . Non-combat 1 | . . . . . . . . 1 . . . . . . . . . . . . . Combat 1 | . . . . . . . . 1 . . . . . . . . . . . . . Robot Hacks Applied 2 | . . . . . . . . 2 . . . . . . . . . . . . . parse_system 1 | . . . . . . . . 1 . . . . . . . . . . . . . check_alert 1 | . . . . . . . . 1 . . . . . . . . . . . . . Manual 5 | . . . . . . . . 1 . . 1 . . . . . 1 . 2 . . Relay Couplers Released 1 | . . . . . . . . . . . . . . . . . 1 . . . . Machine Destruction 1 | . . . . . . . . . . . . . . . . . 1 . . . . Fabnet Peak Effective % . | . . . . . . . . . . . . . . . . . . . . . . Robots Rewired 10 | . . . . . 4 . . 6 . . . . . . . . . . . . . Allies Hacked 1 | . . . . . . . . . . . . . . . . . . . 1 . . Hacks Repelled . | . . . . . . . . . . . . . . . . . . . . . . Allies | -11 -10 -10 -9 -9 -9 -9 -6 -6 -6 -6 -6 -5 -5 -5 -5 -4 -4 -3 -3 -2 -1 -------- Run | Yrd Mat Min Mat Sto Rec Scr Fac Ext Cet Arc Hub Fac Upp Upp Zhi Pro Fac Res Qua Res Acc Total Allies 33 | . . . . 2 4 . . 15 5 . 1 . . 2 . . 1 . 2 . 1 Largest Group 13 | . . . . 2 4 4 4 10 13 5 3 . . 2 1 . 1 . 2 . 1 Highest-Rated Group 855 | . . . . 62 62 62 62 431 855 399 213 . . 62 28 . 10 . 34 . 45 Highest-Rated Ally 159 | . . . . 31 21 21 21 159 159 96 96 . . 31 28 . 10 . 26 . 45 Initial UFD Resources 46 | . . . . . . . 22 22 22 22 22 26 26 26 26 28 28 30 40 43 46 Total Orders 7 | . . . . . . . 1 . 6 . . . . . . . . . . . . STAY 3 | . . . . . . . . . 3 . . . . . . . . . . . . FOLLOW 3 | . . . . . . . . . 3 . . . . . . . . . . . . EXPLORE 1 | . . . . . . . 1 . . . . . . . . . . . . . . Ally Attacks 213 | . . . . 19 8 . 11 62 55 14 30 . . 14 . . . . . . . Total Damage 5058 | . . . . 318 125 . 187 1091 1573 624 950 . . 190 . . . . . . . Kills 45 | . . . . 3 2 . 1 6 15 4 12 . . 2 . . . . . . . Allies Corrupted 4 | . . . . . . . . 1 . . 3 . . . . . . . . . . Allies Melted . | . . . . . . . . . . . . . . . . . . . . . . Intel | -11 -10 -10 -9 -9 -9 -9 -6 -6 -6 -6 -6 -5 -5 -5 -5 -4 -4 -3 -3 -2 -1 ------- Run | Yrd Mat Min Mat Sto Rec Scr Fac Ext Cet Arc Hub Fac Upp Upp Zhi Pro Fac Res Qua Res Acc Active Infowar (turns) 19887 | 8 1074 645 1354 2265 1580 2369 1605 1352 24 14 396 820 802 722 231 285 238 2386 720 997 . Optics 4282 | . . . . . . . . . . . . . . . . . 202 2386 720 974 . Sensors 9060 | . . . . . . . 1328 1352 24 12 396 728 632 651 226 285 224 2036 474 692 . Terrain 7266 | . . . . . . . 714 . . 11 394 726 636 652 208 285 224 2233 528 655 . Structural 30 | . . . . . . . 30 . . . . . . . . . . . . . . Seismic 9838 | 8 1074 645 1354 2265 1580 2369 543 . . . . . . . . . . . . . . Cloaking 1 | . . . . . . . . . . . . . . . . . . 1 . . . Jamming 6701 | . . . . . . . . . . . . 427 802 722 231 285 238 2386 720 890 . ECM 23 | . . . . . . . . . . . . . . . . . . . . 23 . Robot Analysis Total 9 | . . . . . . 8 . . . . . . . . . . . . . . 1 Derelict Logs Recovered 2 | . . . . . . . . . . . . . 1 . . 1 . . . . . Drone Launches 2 | . . . . . . . 2 . . . . . . . . . . . . . . Drone Recoveries . | . . . . . . . . . . . . . . . . . . . . . . Exploration | -11 -10 -10 -9 -9 -9 -9 -6 -6 -6 -6 -6 -5 -5 -5 -5 -4 -4 -3 -3 -2 -1 ------------- Run | Yrd Mat Min Mat Sto Rec Scr Fac Ext Cet Arc Hub Fac Upp Upp Zhi Pro Fac Res Qua Res Acc Turns Passed 22260 | 91 1074 645 1480 2353 1580 2541 1607 1352 862 301 465 908 802 722 231 285 238 2386 720 1207 410 Spaces Moved 10702 | 42 533 179 491 779 625 1191 812 706 284 106 254 423 417 406 127 151 101 1321 283 723 748 Core 314 | 3 . . . . . 192 . . . . . . . . . . . . . 37 82 Treads 9370 | 39 533 179 491 779 625 999 812 706 284 106 254 423 417 406 127 151 101 1321 283 334 . Legs . | . . . . . . . . . . . . . . . . . . . . . . Wheels . | . . . . . . . . . . . . . . . . . . . . . . Hover 587 | . . . . . . . . . . . . . . . . . . . . 352 235 Flight 431 | . . . . . . . . . . . . . . . . . . . . . 431 Fastest Speed 40 | 50 160 160 240 240 240 50 160 160 160 160 160 160 160 160 160 160 160 160 166 50 40 Average Speed 169 | 152 160 177 240 240 240 208 161 160 161 160 160 160 160 160 160 160 160 160 166 108 49 Slowest Speed 400 | 160 160 240 240 240 240 240 240 240 240 160 160 240 160 160 160 240 160 170 166 400 106 Overloaded Moves . | . . . . . . . . . . . . . . . . . . . . . . Propulsion Burnouts . | . . . . . . . . . . . . . . . . . . . . . . Robots Hopped 20 | . . . . . . . . . . . . . . . . . . . . . 20 Potential Cave-ins 15 | . . . . . . . . . . . . 2 . . . . . . 2 3 8 Cave-ins Triggered . | . . . . . . . . . . . . . . . . . . . . . . Teleports 1 | . . . . . . . . . . . . . . . . . . . . 1 . Exploration Rate (%) 51 | 3 92 36 45 90 99 82 27 83 66 75 43 12 73 64 56 36 2 41 52 24 22 Regions Visited 21 Branch Regions 13 Pre-discovered Areas 22 | . 2 1 2 1 10 5 . . . . . . . 1 . . . . . . . Known Exits Taken 15 | . . . 1 . . . 1 1 1 1 1 1 1 1 1 1 1 1 1 1 . Unknown Exits Taken 6 | 1 1 1 . 1 1 1 . . . . . . . . . . . . . . . Scrap Searched 10 | . . 1 . . . 4 . . . . . . 3 2 . . . . . . . Spaces Dug 101 | . . . 2 4 . . 11 1 . . 7 16 . 1 . 1 2 8 10 10 28 Terrain Destroyed 743 | . . . 2 18 . . 16 1 30 13 510 49 9 3 . 7 2 21 15 19 28 Melee 11 | . . . 2 4 . . 5 . . . . . . . . . . . . . . Projectile 198 | . . . . . . . 6 1 30 13 11 35 9 3 . 7 2 19 15 19 28 AOE 534 | . . . . 14 . . 5 . . . 499 14 . . . . . 2 . . . Terrain Rammed . | . . . . . . . . . . . . . . . . . . . . . . Walls Destroyed . | . . . . . . . . . . . . . . . . . . . . . . Machines Disabled . | . . . . . . . . . . . . . . . . . . . . . . Actions | -11 -10 -10 -9 -9 -9 -9 -6 -6 -6 -6 -6 -5 -5 -5 -5 -4 -4 -3 -3 -2 -1 --------- Run | Yrd Mat Min Mat Sto Rec Scr Fac Ext Cet Arc Hub Fac Upp Upp Zhi Pro Fac Res Qua Res Acc Total 13731 | 56 658 494 675 1103 677 1244 1001 851 654 206 286 581 518 459 156 173 168 1522 455 1026 768 Wait 1437 | . 61 307 85 130 11 10 47 12 278 52 5 27 78 28 2 11 45 15 65 157 11 Move 10646 | 41 532 178 490 778 624 1190 811 705 283 105 254 422 416 405 126 150 100 1320 282 723 711 Hop 17 | . . . . . . . . . . . . . . . . . . . . . 17 Pick Up 186 | 3 8 1 18 32 . 23 12 6 15 3 . 17 . 3 4 . 1 23 7 9 1 Fast Attach 146 | 7 1 . 3 5 . 9 11 1 5 10 . 15 . . 10 . . 30 9 21 9 Attach 50 | . . . 2 . . . 7 2 . 1 . 8 . 2 1 . 2 5 5 11 4 Detach 30 | . . . . . . . 4 . 2 4 . 4 . . 1 . . 2 5 3 5 Swap 265 | . 2 1 13 39 2 3 28 24 18 8 9 21 10 10 . . 10 29 22 16 . Drop 259 | . 4 . 14 41 2 9 18 12 29 8 . 25 . 2 12 . 1 50 15 13 4 Fire 578 | 5 48 6 44 60 11 . 33 70 24 15 16 42 14 9 . 12 9 48 43 67 2 Melee 44 | . . . 4 13 . . 27 . . . . . . . . . . . . . . Ram 9 | . . . . . . . . . . . . . . . . . . . . 5 4 Kick . | . . . . . . . . . . . . . . . . . . . . . . Crush 34 | . 2 1 2 3 2 . 3 16 . . 2 . . . . . . . 2 1 . Escape Stasis 2 | . . . . 2 . . . . . . . . . . . . . . . . . Rewire 28 | . . . . . 25 . . 3 . . . . . . . . . . . . . Trap . | . . . . . . . . . . . . . . . . . . . . . . Miscellaneous . | . . . . . . . . . . . . . . . . . . . . . . Route ------- -11/Scrapyard -10/Materials (discovered 6 exits: *Mat x3 / [*Min x2] / [*Sub]) -10/Mines -9/Materials (discovered 4 exits: *Mat / *Min / *Sto x2) -9/Storage (discovered 2 exits: *Mat / *Rec) -9/Recycling (discovered 2 exits: *Fac / *Scr) -9/Scraptown (discovered 2 exits: *Fac x2) -6/Factory (discovered 7 exits: *Fac x3 / *Low x2 / *Ext x2) -6/Extension (discovered 3 exits: *Fac x2 / *Cet) -6/Cetus (discovered 2 exits: *Fac / *Arc) -6/Archives (discovered 2 exits: *Fac / *Hub) -6/Hub_04(d) -5/Factory (discovered 2 exits: *Upp x2) -5/Upper Caves -5/Upper Caves (discovered 2 exits: Fac / *Zhi) -5/Zhirov -4/Proximity Caves -4/Factory (discovered 2 exits: *Res x2) -3/Research (discovered 6 exits: *Res x3 / Arm / *Qua x2) -3/Quarantine -2/Research (discovered 3 exits: *Acc x3) -1/Access (discovered 1 exit: [*Com]) History --------- Turn | Location | Event 17 | -11/Scrapyard | Discovered new exit (range 15) 92 | -11/Scrapyard | Entered Materials 318 | -10/Materials | Build established: Mutant 400 | -10/Materials | Discovered new exit (range 16) 610 | -10/Materials | Discovered new exit (range 11) 720 | -10/Materials | Discovered new exit (range 7) 795 | -10/Materials | Discovered new exit (range 13) 827 | -10/Materials | Discovered new exit (range 11) 904 | -10/Materials | Discovered new exit (range 15) 1013 | -10/Materials | Repaired Lgt. Treads 1166 | -10/Materials | Entered Mines 1448 | -10/Mines | Discovered new exit (range 10) 1811 | -10/Mines | Entered Materials 1811 | -9/Materials | Evolved 2 slots: Weapon x2 2028 | -9/Materials | Discovered new exit (range 15) 2099 | -9/Materials | Build established: Gunner 2300 | -9/Materials | Identified exit to Mines 2300 | -9/Materials | Identified exit to Storage 2996 | -9/Materials | Discovered new exit (range 16) 3291 | -9/Materials | Entered Storage 3334 | -9/Storage | Repaired Assault Rifle+ 3462 | -9/Storage | Build established: Scavenger-Gunner 3886 | -9/Storage | Used back door to open Recycling access 3886 | -9/Storage | Discovered new exit (range 5) 4074 | -9/Storage | Identified exit to Materials 4385 | -9/Storage | Met a pair of Derelict thieves 4491 | -9/Storage | First assault squad dispatched 4767 | -9/Storage | Repaired Hcp. Storage Unit 5406 | -9/Storage | Build established: Gunner 5644 | -9/Storage | Entered Recycling 6012 | -9/Recycling | Build established: Commander-Gunner 6722 | -9/Recycling | Identified exit to Factory 6757 | -9/Recycling | Learned Materials terminal intel 6783 | -9/Recycling | Learned location of 1 exit from Storage 6805 | -9/Recycling | Scanned before Scraplab entrance 6902 | -9/Recycling | Learned Storage security intel 7187 | -9/Recycling | Entered Scraplab 7209 | -9/Recycling | Discovered new exit (range 2) 7224 | -9/Recycling | Entered Scraptown 7224 | -9/Scraptown | Accompanied by 4 allies 7781 | -9/Scraptown | Discovered new exit (range 13) 7975 | -9/Scraptown | Visited TADAMA 8009 | -9/Scraptown | Visited IN-MT5's Study 8064 | -9/Scraptown | Visited Artisan Demo Area 8086 | -9/Scraptown | Visited Symbiants 8165 | -9/Scraptown | Visited Shadow of the Wyrm 8179 | -9/Scraptown | Visited Cyclists 8218 | -9/Scraptown | Visited UFD Registry 8218 | -9/Scraptown | Registered with UFD as "Rusttalker" 8263 | -9/Scraptown | Entered Cyclist Reading Room 8446 | -9/Scraptown | Visited LU-1G1's Boring Crew 8479 | -9/Scraptown | Visited Derelict Rescue Squad 8546 | -9/Scraptown | Visited Research Penetration Think Tank 8734 | -9/Scraptown | Visited Abandonware Association 8758 | -9/Scraptown | Learned abandonware demo "HACKBUD.EXE" 8822 | -9/Scraptown | Visited Scrapoid Pod Storage 8854 | -9/Scraptown | Visited Analyses Database 8894 | -9/Scraptown | Visited Modified Component R&D 8971 | -9/Scraptown | Visited A0-MCA Data Center 8986 | -9/Scraptown | Given a B- rating by A0-MCA 9034 | -9/Scraptown | Visited Science Guys 9115 | -9/Scraptown | Visited Cartography Club 9132 | -9/Scraptown | Released all parts (9) 9200 | -9/Scraptown | Learned location of Recycling (-9) 9200 | -9/Scraptown | Learned location of Warlord (-4) 9200 | -9/Scraptown | Learned location of Quarantine (-3) 9200 | -9/Scraptown | Learned 8 Materials zone layouts 9200 | -9/Scraptown | Learned 16 Materials zone layouts 9200 | -9/Scraptown | Learned 8 Factory zone layouts 9200 | -9/Scraptown | Learned 24 Factory zone layouts 9200 | -9/Scraptown | Learned 4 Access zone layouts 9200 | -9/Scraptown | Learned 20 Lower Caves zone layouts 9200 | -9/Scraptown | Learned 16 Lower Caves zone layouts 9200 | -9/Scraptown | Learned 12 Upper Caves zone layouts 9200 | -9/Scraptown | Learned 8 Proximity Caves zone layouts 9200 | -9/Scraptown | Learned 20 Proximity Caves zone layouts 9200 | -9/Scraptown | Learned location of 1 exit from Lower Caves 9200 | -9/Scraptown | Learned location of 3 exits from Lower Caves 9215 | -9/Scraptown | Found Deep Structural Scanner 9619 | -9/Scraptown | Met Optimus 9619 | -9/Scraptown | Accepted into 0bPrime 9754 | -9/Scraptown | Discovered new exit (range 3) 9765 | -9/Scraptown | Entered Factory 9765 | -6/Factory | Accompanied by 4 allies 9765 | -6/Factory | Evolved 6 slots: Propulsion x2, Utility x4 9766 | -6/Factory | Identified exit to Lower Caves 9767 | -6/Factory | Identified exit to Extension 9767 | -6/Factory | Identified exit to Factory 10126 | -6/Factory | Lost 4 allies 10329 | -6/Factory | Build established: Scavenger-Skirmisher 11090 | -6/Factory | Discovered exit to Factory (range 18) 11372 | -6/Factory | Entered Extension 11471 | -6/Extension | Rescued a captive Derelict 11472 | -6/Extension | Rescued a captive Derelict 11621 | -6/Extension | Rescued a captive Derelict 11622 | -6/Extension | Rescued a captive Derelict 11659 | -6/Extension | Rescued a captive Derelict 11687 | -6/Extension | Identified exit to Cetus 11687 | -6/Extension | Central database locked down 12056 | -6/Extension | Spotted B-75 Beast 12064 | -6/Extension | Allies destroyed B-75 Beast 12075 | -6/Extension | Spotted B-75 Beast 12091 | -6/Extension | Destroyed B-75 Beast 12136 | -6/Extension | Discovered exit to Factory (range 3) 12472 | -6/Extension | Rescued A7 12527 | -6/Extension | Rescued a captive Derelict 12528 | -6/Extension | Rescued a captive Derelict 12641 | -6/Extension | Build established: Commander-Skirmisher 12684 | -6/Extension | Discovered exit to Factory (range 10) 12710 | -6/Extension | Attached CPS modules to A7 12724 | -6/Extension | Entered Cetus 12724 | -6/Cetus | Accompanied by 10 allies (A7) 12729 | -6/Cetus | Acquired a Cetus Manufacturing Module code from A7 12747 | -6/Cetus | Spotted Cetus Guard 12747 | -6/Cetus | Spotted Cetus Guard 12752 | -6/Cetus | Spotted Cetus Guard 12761 | -6/Cetus | Allies destroyed Cetus Guard 12762 | -6/Cetus | Spotted Cetus Guard 12764 | -6/Cetus | Allies destroyed Cetus Guard 12767 | -6/Cetus | Allies destroyed Cetus Guard 12770 | -6/Cetus | Allies destroyed Cetus Guard 12973 | -6/Cetus | Escorted A7 to Cetus Mainframe 12986 | -6/Cetus | Started Cetus Manufacturing Module 13005 | -6/Cetus | Discovered new exit (range 16) 13011 | -6/Cetus | Manufactured an Enhanced Grunt 13028 | -6/Cetus | Identified exit to Archives 13036 | -6/Cetus | Manufactured an Enhanced Grunt 13047 | -6/Cetus | Build established: Scavenger-Tank 13061 | -6/Cetus | Manufactured an Enhanced Grunt 13086 | -6/Cetus | Manufactured an Enhanced Grunt 13111 | -6/Cetus | Manufactured an Enhanced Grunt 13218 | -6/Cetus | Spotted Cetus Guard 13219 | -6/Cetus | Spotted Cetus Guard 13219 | -6/Cetus | Allies destroyed Cetus Guard 13220 | -6/Cetus | Spotted Cetus Guard 13221 | -6/Cetus | Spotted Cetus Guard 13226 | -6/Cetus | Allies destroyed Cetus Guard 13231 | -6/Cetus | Destroyed Cetus Guard 13233 | -6/Cetus | Allies destroyed Cetus Guard 13259 | -6/Cetus | Discovered exit to Factory (range 15) 13269 | -6/Cetus | Met Revision 17 13474 | -6/Cetus | Security sweep announced 13479 | -6/Cetus | Murdered A7 13489 | -6/Cetus | Found Prototype Protection 13489 | -6/Cetus | Identified Med. Regenerative Plating 13500 | -6/Cetus | Extracted ID and sensor layout for unrecognized location from A7's data core 13586 | -6/Cetus | Entered Archives 13586 | -6/Archives | Accompanied by 5 allies 13598 | -6/Archives | Lost 4 allies 13679 | -6/Archives | Lost 3 allies 13687 | -6/Archives | Discovered new exit (range 16) 13751 | -6/Archives | Discovered exit to Factory (range 16) 13884 | -6/Archives | Identified exit to Hub_04(d) 13887 | -6/Archives | Entered Hub_04(d) 13887 | -6/Hub_04(d) | Accompanied by 2 allies 14003 | -6/Hub_04(d) | Garrison activated, responded to threat 14191 | -6/Hub_04(d) | Build established: Scavenger-Skirmisher 14216 | -6/Hub_04(d) | Discovered exit to Factory (range 18) 14284 | -6/Hub_04(d) | Network Hub disabled 14292 | -6/Hub_04(d) | Spotted Lightning 14293 | -6/Hub_04(d) | Spotted Lightning 14325 | -6/Hub_04(d) | Network Hub disabled 14327 | -6/Hub_04(d) | System corruption reached 10% 14331 | -6/Hub_04(d) | Spotted Lightning 14336 | -6/Hub_04(d) | Lost 3 allies 14349 | -6/Hub_04(d) | Network Hub disabled 14349 | -6/Hub_04(d) | Spotted Lightning 14352 | -6/Hub_04(d) | Entered Factory 14352 | -5/Factory | Evolved 2 slots: Power x1, Utility x1 14353 | -5/Factory | Identified exit to Upper Caves 14382 | -5/Factory | Lost 3 parts (1u2w) 14741 | -5/Factory | Found Powered Armor 15042 | -5/Factory | Cargo convoy interrupted 15073 | -5/Factory | Destroyed 8 combat bots 15121 | -5/Factory | Found Prototype Launcher 15121 | -5/Factory | Identified Tactical Quantum Warhead 15136 | -5/Factory | Spotted B-75 Beast 15161 | -5/Factory | Found Prototype Launcher 15161 | -5/Factory | Identified Com. Tesla Bomb Launcher 15252 | -5/Factory | First assault squad dispatched 15260 | -5/Factory | Entered Upper Caves 15261 | -5/Upper Caves | Identified exit to Upper Caves 15445 | -5/Upper Caves | Learned 12 Factory zone layouts 16062 | -5/Upper Caves | Entered another Upper Caves area 16095 | -5/Upper Caves | Discovered new exit (range 12) 16260 | -5/Upper Caves | Learned Factory garrison access intel 16260 | -5/Upper Caves | Learned Extension security intel 16260 | -5/Upper Caves | Learned Armory emergency access door positions 16260 | -5/Upper Caves | Learned Factory trap positions 16262 | -5/Upper Caves | A Commander dispatched an escort 16363 | -5/Upper Caves | Encountered a Warlord checkpoint 16648 | -5/Upper Caves | Discovered new exit (range 4) 16782 | -5/Upper Caves | Identified exit to Zhirov 16784 | -5/Upper Caves | Entered Zhirov 16784 | -5/Zhirov | Accompanied by 1 ally 16784 | -5/Zhirov | Discovered new exit (range 3) 16785 | -5/Zhirov | Commander's escort returned to base 16786 | -5/Zhirov | Identified exit to Proximity Caves 16816 | -5/Zhirov | Met Zhirov 16852 | -5/Zhirov | Found Alien Artifact 16853 | -5/Zhirov | Identified Integrated Reactor 16853 | -5/Zhirov | Installed Integrated Reactor, increased core energy generation (+10) 16875 | -5/Zhirov | Found Alien Artifact 17015 | -5/Zhirov | Entered Proximity Caves 17016 | -4/Proximity Caves | Identified exit to Factory 17022 | -4/Proximity Caves | Learned 4 Research zone layouts 17297 | -4/Proximity Caves | Build established: Skirmisher 17300 | -4/Proximity Caves | Entered Factory 17300 | -4/Factory | Evolved 2 slots: Utility x2 17301 | -4/Factory | Identified exit to Research 17302 | -4/Factory | Loaded intel: 92 trap records 17303 | -4/Factory | Loaded intel: 4 garrison access locations 17305 | -4/Factory | Discovered exit to Research (range 7) 17368 | -4/Factory | Identified Transdimensional Reconstructor 17538 | -4/Factory | Entered Research 17538 | -3/Research | Evolved 2 slots: Propulsion x2 17597 | -3/Research | Identified exit to Armory 17597 | -3/Research | Identified exit to Quarantine 17597 | -3/Research | Watched by a mysterious "MATRIX" hacker 17738 | -3/Research | Revision forces began assault on 0b10 17755 | -3/Research | Met up with Revision 17++ 18030 | -3/Research | Found Prototype Device 18030 | -3/Research | Identified Adv. EM Shield 18123 | -3/Research | Found Prototype Launcher 18123 | -3/Research | Identified Mni. Smartbomb Launcher 18201 | -3/Research | Discovered new exit (range 12) 18227 | -3/Research | Identified exit to Research 18238 | -3/Research | Research terminal network offline 18255 | -3/Research | Build established: Scavenger-Skirmisher 18375 | -3/Research | Loaded intel: 5 recycling unit locations 18760 | -3/Research | Found Prototype Launcher 18760 | -3/Research | Identified Hellfire Missile Launcher 18988 | -3/Research | Build established: Skirmisher 19084 | -3/Research | Discovered exit to Research (range 21) 19329 | -3/Research | Discovered exit to Research (range 19) 19399 | -3/Research | Spotted Striker 19407 | -3/Research | Spotted Striker 19411 | -3/Research | Spotted Striker 19417 | -3/Research | Destroyed Striker 19458 | -3/Research | Lost 4 allies 19618 | -3/Research | System corruption reached 10% 19924 | -3/Research | Entered Quarantine 20004 | -3/Quarantine | Build established: Scavenger-Skirmisher 20223 | -3/Quarantine | Found Alien Energy Cannon 20223 | -3/Quarantine | Identified Core Cannon 20470 | -3/Quarantine | Found Prototype Device 20470 | -3/Quarantine | Identified Exp. Thermal Shield 20471 | -3/Quarantine | System corruption reached 30% 20514 | -3/Quarantine | Found Alien Impact Weapon 20514 | -3/Quarantine | Identified Core Stripper 20593 | -3/Quarantine | Found Alien Artifact 20596 | -3/Quarantine | Identified Subatomic Replicator 20596 | -3/Quarantine | Used Subatomic Replicator to create Alien Artifact 20644 | -3/Quarantine | Entered Research 20644 | -2/Research | Evolved 2 slots: Utility x2 21280 | -2/Research | Central database locked down 21280 | -2/Research | Identified Supercharged TR 21380 | -2/Research | Found Prototype Device 21380 | -2/Research | Identified Adv. Kinecellerator 21528 | -2/Research | Lost 3 parts (2n1u) 21545 | -2/Research | System corruption reached 10% 21592 | -2/Research | Core integrity fell below 50% 21598 | -2/Research | Lost 9 parts (1p4n3u1w) 21636 | -2/Research | Identified exit to Access 21654 | -2/Research | Warped through subspace 21655 | -2/Research | Lost 4 parts (1n2u1w) 21838 | -2/Research | Core integrity fell below 20% 21851 | -2/Research | Entered Access 21851 | -1/Access | Evolved 2 slots: Propulsion x2 21856 | -1/Access | Build established: Hacker-Mutant 21877 | -1/Access | Lost 3 parts (1p1n1u) 22055 | -1/Access | Lost 3 parts (1n2u) 22180 | -1/Access | Lost 4 parts (1p3n) 22193 | -1/Access | Core integrity fell below 50% 22242 | -1/Access | System corruption reached 10% 22246 | -1/Access | Core integrity fell below 20% 22258 | -1/Access | Discovered new exit (range 11) 22261 | -1/Access | Spotted B-99 Colossus 22261 | -1/Access | Spotted B-99 Colossus 22261 | -1/Access | Destroyed by B-99 Colossus with Linear Accelerator Last Messages --------------- 22221_ Acquired Impulse Thruster Array+. 22224_ K-01 Serf collects debris. 22224_ U-05 Engineer builds a Wall. 22226_ Imp. Hacking Suite destroyed. 22227_ K-01 Serf collects debris. 22230_ System corrupted: Matter fused (-8). 22232_ Connecting with Terminal... 22232_ ALERT: Suspicious activity at Terminal A004. Dispatching Investigation squad. 22236_ Acquired Particle Reactor+. 22244_ Beam penetrates Wall. 22244_ Beam penetrates Earth. 22247_ P-80 Master resets P-80 Master, system corruption cleaned. 22255_ System corrupted: Heat flow error (+272). 22258_ Beam penetrates Wall. 22258_ EXIT=FOUND 22258_ Beam penetrates Wall. 22261_ Adv. Signal Interpreter destroyed. 22261_ Critical hit (Blast). Map ----- +----------------------------------------------------+ | ## """#???###########????????????????? ??# | | ## ?????????????????????????????????????# | | ## ??????????????????????????????????????# | | #######??????????????????????????????????????# | | #????????????????????????????????##########??#### | | #????????????????????????????????# #?????? | | #????????????????????????????????# #????## | | #????????????????????????????????# " #????# | | #????????????????????????????????# """ #????# | | #????????????????????????????????# """ #????# | | #????######??????????????????????# " #????# | | ##????# #????????? ????????????#! #????# | | ??????# #????????? ???????????# #????# | | ??????# #?????????# ?????????### #???## | | ####### #?????????#;?????????#T###+"######### = | | + #?????????#;#????????" | | ###### #?????????? ????????" | | #????# = #??????????